bitfinex-derivatives/quotes_ETHF0:USTF0_20210702
["timestamp","ask_amount","ask_price","bid_price","bid_amount"]
[1625263868035,2.20527,2105.4,2104.9,46.96767]
[1625263869687,2.20527,2105.4,2104.9,2.20527]
[1625263873366,4.56527,2105.4,2104.9,2.20527]
[1625263873457,2.20527,2105.0,2104.9,2.20527]
[1625263879973,2.20527,2105.0,2104.9,54.26247]
[1625263880122,2.20527,2105.0,2104.9,2.20527]
[1625263883125,4.72037,2105.0,2104.9,2.20527]
[1625263885084,2.5151,2105.0,2104.9,2.20527]
[1625263885184,2.20527,2105.4,2104.9,2.20527]
[1625263885587,2.20527,2105.4,2105.3,2.20527]
[1625263888543,2.20527,2105.4,2104.9,2.20527]
[1625263888644,4.62037,2105.4,2104.9,2.20527]
[1625263889198,5.0,2105.3,2104.5,41.0771]
[1625263889301,5.0,2105.3,2104.3,43.4518]
[1625263889402,5.0,2105.3,2103.7,1.38010837]
[1625263889504,1.0,2105.2,2103.7,1.38010837]
[1625263889655,2.20527,2104.2,2104.1,2.20527]
[1625263889756,5.13117,2104.2,2104.1,2.20527]
[1625263889962,5.13117,2104.2,2104.1,51.15307]
[1625263891208,2.20527,2104.2,2104.1,51.15307]
[1625263897741,2.20527,2104.2,2104.1,52.53166533]
[1625263897989,29.8602,2105.3,2104.1,52.53166533]
[1625263898183,29.8602,2105.3,2104.1,51.15307]
[1625263898332,30.8602,2105.3,2104.1,51.15307]
[1625263898437,30.8602,2105.3,2105.2,53.8352]
[1625263898534,29.8602,2105.3,2105.2,53.8352]
[1625263898785,14.7988,2105.3,2105.2,53.8352]
[1625263899239,14.7988,2105.3,2104.8,56.6995]
[1625263899739,14.7988,2105.3,2104.8,58.90477]
[1625263902297,14.7988,2105.3,2105.2,55.9044]
[1625263903699,14.7988,2105.3,2105.2,58.10967]
[1625263907759,17.00407,2105.3,2105.2,58.10967]
[1625263908410,17.00407,2105.3,2105.2,55.9044]
[1625263911172,17.00407,2105.3,2104.8,2.20527]
[1625263911785,4.76847,2104.9,2104.8,2.20527]
[1625263912395,4.76847,2104.9,2104.6,42.3973]
[1625263913742,6.97374,2104.9,2104.7,2.20527]
[1625263913894,6.97374,2104.9,2104.8,41.9424]
[1625263914095,2.20527,2104.9,2104.8,41.9424]
[1625263914851,14.7988,2105.3,2104.8,41.9424]
[1625263917751,14.7988,2105.3,2105.0,2.20527]
[1625263917852,14.7988,2105.3,2105.2,46.0478]
[1625263920132,14.7988,2105.3,2105.0,2.20527]
[1625263921486,14.7988,2105.3,2105.2,56.4376]
[1625263923187,14.7988,2105.3,2105.0,2.20527]
[1625263923840,2.20527,2105.1,2105.0,2.20527]
[1625263923942,5.51167,2105.1,2105.0,2.20527]
[1625263924498,5.51167,2105.1,2104.7,2.20527]
[1625263925300,5.51167,2105.1,2104.4,57.8799]
[1625263925659,5.51167,2105.1,2104.1,1.38206124]
[1625263925852,2.20527,2104.5,2104.3,2.20527]
[1625263925951,4.99767,2104.5,2104.3,2.20527]
[1625263926502,2.7924,2104.5,2104.3,2.20527]
[1625263927352,1.0,2105.0,2104.3,2.20527]
[1625263927560,1.0,2105.0,2104.3,4.75377]
[1625263927814,1.0,2105.0,2104.8,2.20527]
[1625263927915,2.20527,2105.1,2104.8,2.20527]
[1625263928015,2.20527,2105.1,2104.8,5.63797]
[1625263929069,2.20527,2105.1,2105.0,57.2415]
[1625263929877,2.20527,2105.1,2105.0,59.44677]
[1625263930084,15.7723,2105.6,2105.0,59.44677]
[1625263930179,2.40109097,2105.8,2105.0,59.44677]
[1625263930288,1.0,2105.8,2105.0,59.44677]
[1625263930433,1.40091078,2106.0,2105.0,59.44677]
[1625263930732,17.15660909,2106.3,2105.9,56.9642]
[1625263930884,17.15660909,2106.3,2105.9,60.4868]
[1625263931133,15.7545,2106.3,2105.9,60.4868]
[1625263931396,1.40163429,2106.4,2105.9,60.4868]
[1625263931847,1.40163429,2106.4,2106.3,4.41054]
[1625263932052,2.20527,2106.5,2106.3,4.41054]
[1625263934002,2.20527,2106.5,2106.3,45.88514]
[1625263935721,2.20527,2106.5,2106.3,43.67987]
[1625263936225,3.60610103,2106.5,2106.3,43.67987]
[1625263936830,2.20527,2106.5,2106.3,43.67987]
[1625263937577,3.6057987,2106.7,2106.3,43.67987]
[1625263937877,3.6057987,2106.7,2106.6,2.20527]
[1625263937989,3.6057987,2106.7,2106.6,5.53757]
[1625263938084,1.40039989,2106.9,2106.6,5.53757]
[1625263938534,1.96055985,2107.0,2106.6,5.53757]
[1625263938535,1.40030366,2107.0,2106.6,5.53757]
[1625263938833,1.40030366,2107.0,2106.9,48.6587]
[1625263938934,1.39915777,2107.3,2106.9,48.6587]
[1625263939237,1.39914406,2107.4,2106.9,48.6587]
[1625263939741,1.39914406,2107.4,2106.6,5.53757]
[1625263939841,1.39914406,2107.4,2107.3,4.41054]
[1625263939842,2.39914406,2107.4,2107.3,4.41054]
[1625263939940,1.39914406,2107.4,2107.3,6.91984]
[1625263940193,3.60435801,2107.5,2107.3,4.71457]
[1625263940392,3.60435801,2107.5,2107.4,41.1646]
[1625263941092,2.20527,2107.5,2107.4,41.1646]
[1625263941192,2.20527,2107.5,2107.3,2.20527]
[1625263941846,3.60330419,2107.5,2107.3,2.20527]
[1625263942244,1.95744267,2107.4,2107.3,2.20527]
[1625263942697,2.79634942,2107.4,2107.3,2.20527]
[1625263942859,2.79634942,2107.4,2106.3,41.4746]
[1625263942954,1.0,2107.3,2106.3,41.4746]
[1625263943198,1.39777704,2107.2,2106.3,41.4746]
[1625263943303,1.0,2107.1,2106.3,41.4746]
[1625263943548,1.0,2107.1,2105.8,81.4641]
[1625263943648,2.39784878,2107.1,2105.8,81.4641]
[1625263943850,2.20527,2106.3,2105.9,2.20527]
[1625263943958,4.95827,2106.3,2105.9,2.20527]
[1625263944604,4.95827,2106.3,2105.7,2.20527]
[1625263944707,64.23437,2106.3,2105.7,2.20527]
[1625263945461,4.95827,2106.3,2105.7,2.20527]
[1625263945558,6.35667219,2106.3,2105.7,2.20527]
[1625263945908,2.20527,2105.8,2105.7,4.41054]
[1625263946008,2.20527,2105.8,2105.7,48.74294]
[1625263946409,2.39827946,2106.5,2105.7,48.74294]
[1625263946512,1.39827946,2106.5,2105.7,52.13174]
[1625263946612,1.39813899,2106.7,2105.7,52.13174]
[1625263946962,4.759,2106.7,2105.7,52.13174]
[1625263947065,4.759,2106.7,2106.5,55.3455]
[1625263947230,1.39777557,2107.1,2106.5,57.7126]
[1625263947724,2.39768498,2107.2,2106.5,57.7126]
[1625263947874,4.60295498,2107.2,2106.5,57.7126]
[1625263949336,3.20527,2107.2,2106.5,57.7126]
[1625263950491,2.20527,2107.2,2106.5,57.7126]
[1625263953256,3.20527,2107.2,2106.5,57.7126]
[1625263953999,3.20527,2107.2,2106.6,2.20527]
[1625263954101,2.20527,2107.2,2106.6,2.20527]
[1625263955960,2.20527,2107.2,2107.1,4.41054]
[1625263956059,2.20527,2107.2,2107.1,48.26324]
[1625263956662,2.20527,2107.4,2107.1,48.26324]
[1625263957515,1.0,2107.8,2107.1,48.26324]
[1625263957616,15.446,2107.9,2107.1,48.26324]
[1625263957967,17.65127,2107.9,2107.8,2.20527]
[1625263958068,17.65127,2107.9,2107.8,5.48007]
[1625263958576,15.446,2107.9,2107.8,5.48007]
[1625263959979,19.85654,2107.9,2107.8,5.48007]
[1625263961039,19.85654,2107.9,2107.8,64.66877]
[1625263961292,19.85654,2107.9,2107.8,62.4635]
[1625263961539,15.446,2107.9,2107.8,62.4635]
[1625263964305,15.446,2107.9,2107.8,3.2748]
[1625263964411,15.446,2107.9,2107.5,2.20527]
[1625263966011,15.446,2107.9,2107.7,44.5153]
[1625263966660,15.446,2107.9,2107.5,2.20527]
[1625263966765,18.7681,2107.9,2107.5,2.20527]
[1625263968064,4.41054,2107.6,2107.5,2.20527]
[1625263970326,2.20527,2107.6,2107.5,2.20527]
[1625263971130,2.20527,2107.6,2107.5,59.42347]
[1625263975288,2.20527,2107.6,2107.5,62.66057]
[1625263976891,1.0,2108.3,2107.5,62.66057]
[1625263977848,1.0,2108.8,2107.6,5.0]
[1625263977945,1.0,2108.8,2107.7,8.0]
[1625263978043,2.39010664,2109.2,2107.8,5.0]
[1625263978152,2.39010664,2109.2,2108.9,4.41054]
[1625263978258,2.20527,2109.3,2109.1,47.7135]
[1625263980031,2.20527,2109.3,2108.9,6.85474]
[1625263980132,2.20527,2109.3,2109.2,2.20527]
[1625263980232,2.20527,2109.3,2108.0,2.9406]
[1625263980385,1.0,2109.2,2108.0,2.9406]
[1625263981037,41.1479,2109.1,2108.0,2.9406]
[1625263981138,42.1479,2109.1,2108.0,2.9406]
[1625263981389,42.1479,2109.1,2107.5,57.2182]
[1625263981538,42.1479,2109.1,2107.2,15.1871]
[1625263981539,47.1479,2109.1,2107.2,15.1871]
[1625263982195,5.83277,2107.9,2107.8,2.20527]
[1625263982388,5.83277,2107.9,2106.2,64.5418]
[1625263982489,5.83277,2107.9,2106.2,63.5418]
[1625263982789,5.83277,2107.9,2106.6,66.0463]
[1625263983544,1.0,2107.8,2106.6,66.0463]
[1625263983790,1.0,2107.8,2106.2,63.5418]
[1625263984142,2.20527,2106.9,2106.6,2.20527]
[1625263985293,2.20527,2106.9,2106.4,2.20527]
[1625263986097,2.20527,2106.9,2106.8,42.1176]
[1625263986498,2.20527,2106.9,2106.4,4.41054]
[1625263986601,4.52977,2106.9,2106.4,4.41054]
[1625263987703,4.52977,2106.9,2106.8,42.1735]
[1625263988251,2.20527,2106.9,2106.8,44.37877]
[1625263988352,2.20527,2106.9,2106.6,2.368]
[1625263988456,5.60897,2106.9,2106.6,2.368]
[1625263989211,5.60897,2106.9,2105.3,1.36690048]
[1625263989355,1.0,2106.8,2105.3,1.36690048]
[1625263989557,1.0,2106.8,2105.2,89.17963675]
[1625263989858,1.0,2106.8,2105.4,17.12502]
[1625263989967,1.0,2106.8,2106.4,40.7827]
[1625263990059,2.20527,2106.9,2106.4,40.7827]
[1625263991313,1.0,2107.6,2107.0,41.4955]
[1625263991413,34.6046,2108.0,2107.0,41.4955]
[1625263992170,2.20527,2107.6,2107.0,41.4955]
[1625263993030,2.20527,2107.6,2106.6,2.20527]
[1625263995444,7.20527,2107.6,2106.6,2.20527]
[1625263996147,7.20527,2107.6,2106.4,40.7827]
[1625263996249,2.20527,2106.5,2106.4,40.7827]
[1625263997702,1.0,2107.1,2106.4,40.7827]
[1625263997801,1.94686558,2108.5,2106.4,40.7827]
[1625263997901,2.01417077,2406.1,2106.4,40.7827]
[1625263997902,1.0,2107.6,2106.4,40.7827]
[1625263998104,1.0,2107.6,2107.1,45.0316]
[1625263998201,2.20527,2107.2,2107.1,45.0316]
[1625263998802,2.20527,2107.2,2106.6,2.20527]
[1625263999312,2.20527,2107.2,2107.0,45.0337]
[1625263999407,2.20527,2107.2,2107.0,48.0524]
[1625264000260,2.20527,2107.2,2107.1,2.20527]
[1625264000668,1.0,2107.9,2107.1,2.20527]
[1625264000761,29.8456,2108.0,2107.1,2.20527]
[1625264001468,29.8456,2108.0,2107.8,52.9341]
[1625264001618,29.8456,2108.0,2107.8,55.8613]
[1625264001724,1.0,2108.5,2107.8,55.8613]
[1625264001823,11.745,2109.1,2107.8,55.8613]
[1625264001921,1.0,2109.0,2107.8,55.8613]
[1625264002288,2.20527,2108.2,2107.8,55.8613]
[1625264003984,2.20527,2108.2,2107.8,2.9272]
[1625264004189,2.20527,2108.2,2107.6,2.20527]
[1625264005789,2.20527,2108.2,2107.1,2.20527]
[1625264005890,8.20527,2108.2,2107.1,2.20527]
[1625264006292,2.20527,2107.2,2107.1,2.20527]
[1625264007042,2.20527,2107.5,2107.1,2.20527]
[1625264007792,2.20527,2107.5,2107.4,54.8711]
[1625264007946,2.20527,2107.5,2107.4,57.6475]
[1625264008143,1.0,2108.5,2107.4,57.6475]
[1625264008294,2.20527,2107.8,2107.4,57.6475]
[1625264012163,30.365,2108.6,2107.4,57.6475]
[1625264012269,14.5265,2108.6,2107.4,57.6475]
[1625264012367,14.5265,2108.6,2108.5,2.20527]
[1625264012519,2.20527,2108.7,2108.5,5.57997]
[1625264012724,2.20527,2108.7,2108.6,42.5625]
[1625264014122,2.20527,2108.7,2108.5,5.57997]
[1625264014371,4.41054,2108.7,2108.5,5.57997]
[1625264017789,4.41054,2108.7,2108.5,3.3747]
[1625264017887,4.41054,2108.7,2107.9,53.5277]
[1625264018438,2.20527,2108.3,2107.9,55.73297]
[1625264024907,2.20527,2108.3,2107.9,2.20527]
[1625264025509,2.20527,2108.3,2106.6,1.39490527]
[1625264025608,3.2317,2108.0,2106.6,1.39490527]
[1625264025718,1.0,2107.9,2106.6,1.39490527]
[1625264026264,1.0,2107.9,2107.0,45.1996]
[1625264026358,3.2317,2108.0,2107.0,45.1996]
[1625264026458,2.20527,2107.6,2107.0,45.1996]
[1625264027861,2.20527,2107.6,2107.5,56.2416]
[1625264028461,2.20527,2107.6,2107.5,60.65214]
[1625264030276,1.0,2108.4,2107.5,60.65214]
[1625264030377,32.2057,2108.7,2107.5,60.65214]
[1625264030524,33.41097,2108.7,2108.6,5.74887]
[1625264030782,18.02827,2108.7,2108.6,5.74887]
[1625264030874,18.02827,2108.7,2108.6,48.55067]
[1625264032279,2.20527,2108.7,2108.6,48.55067]
[1625264032483,1.38558679,2109.3,2108.6,48.55067]
[1625264032580,3.59085679,2109.3,2108.6,48.55067]
[1625264032794,2.20527,2109.3,2108.6,48.55067]
[1625264033199,2.20527,2109.3,2109.2,58.8817]
[1625264033399,2.20527,2109.3,2109.2,61.4847]
[1625264033849,2.20527,2109.3,2109.2,2.603]
[1625264034497,2.20527,2109.3,2108.6,2.20527]
[1625264034598,4.41054,2108.7,2108.6,2.20527]
[1625264037105,8.18764,2108.7,2107.5,53.6379]
[1625264037203,9.18764,2108.7,2107.5,53.6379]
[1625264037865,9.18764,2108.7,2107.2,1.39605853]
[1625264038156,13.94664,2108.7,2107.2,1.39605853]
[1625264038258,13.94664,2108.7,2107.0,2.79113788]
[1625264038259,13.94664,2108.7,2107.0,1.39620777]
[1625264038356,18.94664,2108.7,2107.0,1.39620777]
[1625264038563,20.33182381,2108.7,2106.8,1.39642438]
[1625264038658,5.97687,2107.8,2107.7,2.20527]
[1625264038759,5.97687,2107.8,2106.8,1.39642438]
[1625264038960,5.97687,2107.8,2107.3,50.0422]
[1625264040465,5.97687,2107.8,2107.7,47.4698]
[1625264040663,4.41054,2107.8,2107.7,49.67507]
[1625264041169,1.0,2108.4,2107.7,49.67507]
[1625264041268,6.14580088,2108.7,2108.3,49.7343]
[1625264041668,4.759,2108.7,2108.3,49.7343]
[1625264042115,1.38824697,2108.9,2108.3,49.7343]
[1625264042219,14.7434,2109.0,2108.3,49.7343]
[1625264042666,16.94867,2109.0,2108.9,4.41054]
[1625264042765,16.94867,2109.0,2108.3,49.7343]
[1625264043065,2.20527,2109.0,2108.3,49.7343]
[1625264043214,2.20527,2109.0,2108.9,57.1606]
[1625264044626,2.20527,2109.0,2108.9,61.57114]
[1625264049003,2.20527,2109.0,2108.9,7.10314]
[1625264049151,2.20527,2109.0,2108.9,4.41054]
[1625264049255,5.44297,2109.0,2108.9,4.41054]
[1625264050055,5.44297,2109.0,2107.7,47.4698]
[1625264050166,6.44297,2109.0,2107.7,47.4698]
[1625264050705,6.44297,2109.0,2108.3,2.20527]
[1625264050807,5.44297,2109.0,2108.5,53.5231]
[1625264051506,2.20527,2109.0,2108.5,53.5231]
[1625264052458,2.20527,2109.2,2108.5,53.5231]
[1625264052712,2.20527,2109.2,2109.1,4.41054]
[1625264052809,2.20527,2109.2,2109.1,7.77224]
[1625264054779,2.20527,2109.2,2109.1,4.41054]
[1625264056075,2.20527,2109.2,2109.1,1.00914]
[1625264056276,5.53287,2109.2,2108.5,53.5231]
[1625264056376,5.53287,2109.2,2107.7,48.86478454]
[1625264056477,1.0,2109.1,2107.7,47.4698]
[1625264056725,2.20527,2108.5,2107.8,2.20527]
[1625264056826,5.66847,2108.5,2107.8,2.20527]
[1625264057727,5.66847,2108.5,2108.4,47.1822]
[1625264057826,2.20527,2108.5,2108.4,49.7393]
[1625264058778,2.20527,2108.5,2108.4,54.14984]
[1625264058878,2.20527,2108.7,2108.4,54.14984]
[1625264059381,2.20527,2108.7,2108.4,59.14984]
[1625264059681,4.759,2109.7,2108.4,59.14984]
[1625264059783,4.759,2109.7,2108.4,54.14984]
[1625264059883,5.759,2109.7,2108.4,54.14984]
[1625264060232,4.759,2109.7,2108.4,54.14984]
[1625264060383,4.759,2109.7,2109.6,48.8071]
[1625264060835,9.16954,2109.7,2109.6,48.8071]
[1625264061135,4.41054,2109.7,2109.6,48.8071]
[1625264070771,4.41054,2109.7,2109.1,73.02167]
[1625264070872,7.06934,2109.7,2109.1,2.20527]
[1625264071772,7.06934,2109.7,2108.4,47.1822]
[1625264071875,1.0,2109.6,2108.4,47.1822]
[1625264072676,1.0,2109.6,2109.4,44.8211]
[1625264072775,4.41054,2109.7,2109.4,44.8211]
[1625264086720,4.41054,2109.7,2109.1,2.20527]
[1625264086971,4.41054,2109.2,2108.7,2.20527]
[1625264087120,6.78414,2109.2,2108.7,2.20527]
[1625264087823,6.78414,2109.2,2108.3,2.20527]
[1625264088329,6.78414,2109.2,2109.1,59.1343]
[1625264088476,4.41054,2109.2,2109.1,59.1343]
[1625264088931,4.41054,2109.2,2109.1,62.4816]
[1625264095241,4.41054,2109.2,2109.1,3.3473]
[1625264095343,4.41054,2109.2,2108.9,4.41054]
[1625264095991,4.41054,2109.2,2109.0,52.2426]
[1625264097897,4.41054,2109.2,2109.0,54.8177]
[1625264103266,1.3964238,2110.2,2109.0,67.8177]
[1625264104121,1.39592136,2110.9,2109.3,1.39496835]
[1625264104219,1.39592136,2110.9,2109.4,8.0]
[1625264104321,1.39592136,2110.9,2109.5,5.0]
[1625264104421,3.62939554,2111.3,2109.6,8.0]
[1625264104422,1.95289809,2111.2,2109.6,8.0]
[1625264104572,1.95289809,2111.2,2110.9,47.8742]
[1625264104771,15.6304,2111.4,2110.9,47.8742]
[1625264104772,17.58293081,2111.4,2110.9,47.8742]
[1625264105128,1.95253081,2111.4,2111.3,4.41054]
[1625264105228,4.1563083,2111.5,2111.3,4.41054]
[1625264105621,4.1563083,2111.5,2111.4,43.636]
[1625264105726,2.20527,2111.5,2111.4,46.1113]
[1625264108782,2.20527,2111.7,2111.4,46.1113]
[1625264109131,2.20527,2111.7,2111.6,2.20527]
[1625264109484,4.81697,2111.7,2110.5,80.8228]
[1625264109582,5.81697,2111.7,2110.5,80.8228]
[1625264109932,7.76640342,2111.7,2110.5,80.8228]
[1625264110181,12.52540342,2111.7,2110.5,80.8228]
[1625264110332,1.94955219,2111.6,2110.5,80.8228]
[1625264110437,1.0,2111.5,2110.5,80.8228]
[1625264110834,1.94927889,2111.3,2109.9,66.9973]
[1625264110934,1.0,2111.2,2109.9,66.9973]
[1625264111042,4.6948,2111.2,2109.9,66.9973]
[1625264111142,2.20527,2110.9,2110.8,2.20527]
[1625264111238,2.20527,2110.9,2109.9,66.9973]
[1625264111335,1.0,2110.8,2109.9,66.9973]
[1625264112235,1.0,2110.8,2110.5,41.1928]
[1625264112385,2.20527,2110.9,2110.5,41.1928]
[1625264113141,2.20527,2110.6,2110.5,41.1928]
[1625264114406,3.20527,2110.9,2110.5,41.1928]
[1625264114501,2.20527,2110.9,2110.5,41.1928]
[1625264115155,2.20527,2111.2,2110.7,2.20527]
[1625264115252,2.20527,2111.2,2110.7,4.81367]
[1625264115763,2.20527,2111.2,2111.1,47.1737]
[1625264117268,2.20527,2111.2,2111.1,49.37897]
[1625264117566,2.20527,2111.2,2111.1,2.20527]
[1625264118826,2.20527,2111.2,2110.7,2.20527]
[1625264119279,4.84027,2110.8,2110.2,2.20527]
[1625264121240,4.41054,2110.3,2110.2,2.20527]
[1625264122638,1.0,2110.8,2110.2,2.20527]
[1625264122795,1.0,2111.1,2110.2,5.91177]
[1625264122936,4.759,2111.2,2110.2,5.91177]
[1625264123138,1.9492743,2111.4,2110.2,5.91177]
[1625264123288,2.20527,2111.4,2110.7,5.13807]
[1625264123990,2.20527,2111.4,2111.0,49.4765]
[1625264125296,2.20527,2111.4,2111.1,2.20527]
[1625264126398,19.4693,2111.7,2111.1,2.20527]
[1625264126698,4.759,2111.7,2111.1,2.20527]
[1625264127198,1.0,2112.0,2111.1,2.20527]
[1625264127301,4.15317908,2112.1,2111.9,2.20527]
[1625264127450,4.15317908,2112.1,2111.9,4.93377]
[1625264127749,4.15317908,2112.1,2112.0,43.6927]
[1625264128101,2.20527,2112.1,2112.0,43.6927]
[1625264128909,2.20527,2112.1,2111.9,4.93377]
[1625264129356,4.41054,2112.1,2111.9,4.93377]
[1625264129656,6.35834832,2112.1,2111.9,4.93377]
[1625264130006,4.41054,2112.1,2110.3,14.7309]
[1625264130162,7.96574,2112.1,2110.3,14.7309]
[1625264130406,7.96574,2112.1,2109.6,6.0]
[1625264130507,1.94789431,2112.0,2109.6,5.0]
[1625264130607,1.0,2111.9,2109.6,5.0]
[1625264130810,2.94856975,2111.9,2109.6,5.0]
[1625264131313,2.20527,2111.4,2110.7,2.20527]
[1625264131411,2.20527,2111.4,2110.7,4.98287]
[1625264131979,2.20527,2111.4,2111.1,43.7078]
[1625264133330,2.20527,2111.3,2111.2,2.20527]
[1625264133529,2.20527,2111.3,2111.1,43.7078]
[1625264135433,2.20527,2111.3,2111.2,5.87697]
[1625264139442,2.20527,2111.7,2111.2,8.08224]
[1625264139594,1.0,2112.3,2111.2,21.08224]
[1625264139692,4.759,2112.5,2111.2,21.08224]
[1625264139993,4.759,2112.5,2111.3,17.046575]
[1625264140145,14.4874,2112.9,2111.3,17.046575]
[1625264140354,14.4874,2112.9,2111.4,5.0]
[1625264140548,1.0,2112.8,2111.4,5.0]
[1625264140645,1.0,2112.8,2111.5,17.2371]
[1625264140746,1.0,2112.8,2112.4,46.5571]
[1625264140847,14.4874,2112.9,2112.4,46.5571]
[1625264141096,17.56721154,2113.1,2112.4,46.5571]
[1625264141204,15.6216,2113.1,2112.4,46.5571]
[1625264141346,4.41054,2112.5,2112.4,46.5571]
[1625264141796,4.41054,2112.5,2112.4,3.2895]
[1625264144602,4.41054,2112.5,2112.2,2.20527]
[1625264144957,3.3154,2112.8,2112.2,2.20527]
[1625264145054,15.6216,2113.1,2112.2,2.20527]
[1625264145153,15.6216,2113.1,2112.2,9.77107]
[1625264145354,15.6216,2113.1,2113.0,4.41054]
[1625264145460,2.20527,2113.1,2113.0,4.41054]
[1625264145854,2.20527,2113.1,2113.0,46.09674]
[1625264147416,2.20527,2113.1,2113.0,41.6862]
[1625264149686,2.20527,2113.1,2112.8,2.20527]
[1625264149783,2.20527,2113.1,2112.7,2.9952]
[1625264149983,2.20527,2113.1,2112.6,2.20527]
[1625264151438,2.20527,2112.7,2112.6,2.20527]
[1625264151988,2.20527,2113.1,2112.6,2.20527]
[1625264152096,2.20527,2113.1,2112.6,5.91157]
[1625264152190,1.0,2113.5,2112.6,5.91157]
[1625264152294,6.69879594,2114.0,2112.6,5.91157]
[1625264152392,1.0,2113.9,2112.6,5.91157]
[1625264153343,1.0,2113.9,2113.4,42.4872]
[1625264153442,4.41054,2113.5,2113.4,45.776]
[1625264153642,2.20527,2113.5,2113.4,45.776]
[1625264154146,2.20527,2113.5,2113.4,3.2888]
[1625264156451,2.20527,2113.7,2113.4,3.2888]
[1625264157508,2.20527,2113.7,2113.6,57.07107]
[1625264160507,2.20527,2113.7,2113.6,2.20527]
[1625264161862,2.20527,2113.7,2111.8,97.6008]
[1625264161962,1.0,2113.6,2110.9,1.9616]
[1625264162112,1.0,2113.6,2111.2,22.6941]
[1625264162463,1.0,2113.6,2111.3,17.102879]
[1625264162560,42.8643,2113.4,2111.4,45.7768]
[1625264162715,1.0,2113.3,2111.4,45.7768]
[1625264162860,1.0,2113.3,2111.5,17.311348]
[1625264163260,1.0,2113.3,2111.6,8.0]
[1625264163372,1.0,2113.3,2111.7,5.0]
[1625264163462,1.0,2113.3,2111.7,13.0]
[1625264163560,1.0,2113.3,2112.7,2.20527]
[1625264163667,2.20527,2113.4,2112.7,2.20527]
[1625264165513,4.41054,2112.8,2112.7,2.20527]
[1625264166474,8.07804,2112.8,2112.7,2.20527]
[1625264168290,5.87277,2112.8,2112.7,2.20527]
[1625264168439,2.20527,2112.8,2112.7,2.20527]
[1625264169494,2.20527,2112.8,2111.2,14.6941]
[1625264169594,2.20527,2112.1,2112.0,2.20527]
[1625264169742,4.97777,2112.1,2112.0,2.20527]
[1625264171550,7.18304,2112.1,2112.0,2.20527]
[1625264171794,7.18304,2112.1,2112.0,48.68277]
[1625264172199,7.18304,2112.1,2112.0,2.20527]
[1625264173301,4.97777,2112.1,2112.0,2.20527]
[1625264173401,2.20527,2112.1,2112.0,46.55887]
[1625264175066,2.20527,2112.1,2112.0,50.02837]
[1625264178822,1.0,2112.7,2112.0,50.02837]
[1625264178920,4.759,2113.2,2112.0,50.02837]
[1625264179029,5.759,2113.2,2112.0,50.02837]
[1625264179621,2.20527,2112.8,2112.4,2.20527]
[1625264181628,2.20527,2112.5,2112.4,4.41054]
[1625264183190,2.20527,2112.5,2112.0,44.3536]
[1625264183643,2.20527,2112.5,2112.1,2.20527]
[1625264183748,2.20527,2112.5,2112.1,4.64657]
[1625264185699,2.20527,2112.5,2112.4,2.20527]
[1625264187955,2.20527,2112.5,2112.1,4.64657]
[1625264189718,2.20527,2112.5,2112.4,2.20527]
[1625264191613,2.20527,2112.5,2112.1,4.64657]
[1625264191713,2.20527,2112.2,2112.1,4.64657]
[1625264191811,2.20527,2112.2,2112.1,2.20527]
[1625264198641,5.46487,2112.2,2112.1,2.20527]
[1625264201256,5.46487,2112.2,2112.1,60.60507]
[1625264202308,2.20527,2112.2,2112.1,60.60507]
[1625264202703,2.20527,2112.2,2112.1,2.20527]
[1625264204206,2.20527,2112.2,2111.7,2.20527]
[1625264204306,2.20527,2112.2,2111.4,52.7973]
[1625264204410,3.20527,2112.2,2111.4,52.7973]
[1625264204860,2.20527,2112.2,2111.4,52.7973]
[1625264205761,4.41054,2111.5,2111.4,52.7973]
[1625264205910,7.06394,2111.5,2111.4,52.7973]
[1625264208318,7.06394,2111.5,2110.7,87.993]
[1625264208521,7.06394,2111.5,2109.7,1.94112698]
[1625264208619,1.0,2111.4,2109.7,1.94112698]
[1625264208921,1.0,2111.4,2109.6,1.94258912]
[1625264209722,1.941,2111.4,2109.6,1.94258912]
[1625264209822,2.20527,2110.4,2110.3,2.20527]
[1625264211772,2.20527,2110.4,2109.7,2.20527]
[1625264211873,4.41054,2110.4,2109.7,2.20527]
[1625264213830,4.4144,2110.6,2109.7,2.20527]
[1625264213831,4.41054,2109.8,2109.7,2.20527]
[1625264215691,1.0,2110.5,2109.7,4.69727]
[1625264215894,2.20527,2110.2,2109.7,4.69727]
[1625264217456,2.20527,2110.2,2109.7,2.20527]
[1625264217808,2.20527,2109.8,2109.7,2.20527]
[1625264231703,1.0,2110.1,2109.7,2.20527]
[1625264231805,2.20527,2110.2,2109.7,5.95027]
[1625264233259,2.20527,2110.2,2109.8,44.5975]
[1625264233357,2.20527,2110.2,2109.7,2.20527]
[1625264233507,5.96367,2110.2,2108.2,16.26774957]
[1625264233663,6.96367,2110.2,2108.2,16.26774957]
[1625264234010,6.96367,2110.2,2108.8,2.20527]
[1625264234011,2.20527,2108.9,2108.8,2.20527]
[1625264235668,2.20527,2108.9,2108.8,47.27057]
[1625264236020,4.41054,2108.9,2108.8,47.27057]
[1625264236973,4.41054,2108.9,2108.8,2.20527]
[1625264238174,4.41054,2108.9,2108.8,50.49567]
[1625264239681,4.41054,2108.9,2108.8,2.20527]
[1625264245011,4.41054,2108.9,2108.8,52.91157]